fUSD/lending_fUSD_20250812
["ID","MTS","AMOUNT","RATE_DAILY","PERIOD"]
[378758382,1755003117018,-695.15,0.00044109,120]
[378758383,1755003117027,-400.0,0.00044109,120]
[378758384,1755003117038,-595.64,0.00044109,120]
[378758385,1755003117048,-705.13,0.00044109,120]
[378758386,1755003117060,-715.11,0.00044109,120]
[378758387,1755003117070,-469.65,0.00044109,120]
[378758388,1755003117080,-199.10901601,0.00044109,120]
[378758389,1755003117090,-400.0,0.00044109,120]
[378758390,1755003117099,-400.0,0.00044109,120]
[378758391,1755003117108,-832.68,0.00044109,120]
[378758392,1755003117118,-549.29,0.00044109,120]
[378758393,1755003117128,-626.92,0.00044109,120]
[378758394,1755003117137,-400.0,0.00044109,60]
[378758395,1755003117147,-400.0,0.00044109,120]
[378758396,1755003117156,-435.17,0.00044109,120]
[378758397,1755003117165,-400.0,0.00044109,120]
[378758398,1755003117175,-400.0,0.00044109,120]
[378758399,1755003117185,-400.0,0.00044109,120]
[378758400,1755003117194,-747.94,0.00044109,120]
[378758401,1755003117203,-400.0,0.00044109,120]
[378758402,1755003117213,-400.0,0.00044109,120]
[378758403,1755003117223,-400.0,0.00044109,120]
[378758404,1755003117232,-508.17,0.00044109,120]
[378758405,1755003117242,-433.08577442,0.00044109,120]
[378758406,1755003117251,-400.0,0.00044109,120]
[378758407,1755003117261,-400.0,0.00044109,120]
[378758408,1755003117270,-493.89,0.00044109,120]
[378758409,1755003117280,-513.14538347,0.00044109,120]
[378758410,1755003117290,-569.03,0.00044109,120]
[378758411,1755003117299,-400.0,0.00044109,120]
[378758412,1755003117311,-400.0,0.00044109,120]
[378758413,1755003117320,-1304.68,0.00044109,120]
[378758414,1755003117330,-472.71,0.00044109,120]
[378758415,1755003117339,-400.0,0.00044109,120]
[378758416,1755003117348,-485.21,0.00044109,120]
[378758417,1755003117357,-1427.73,0.00044109,120]
[378758418,1755003117366,-400.0,0.00044109,120]
[378758419,1755003117376,-400.0,0.00044109,120]
[378758420,1755003117385,-400.0,0.00044109,120]
[378758421,1755003117394,-313.76892327,0.00044109,120]
[378758422,1755003117403,-400.0,0.00044109,120]
[378758423,1755003117413,-400.0,0.00044109,120]
[378758424,1755003117422,-668.75,0.00044109,120]
[378758425,1755003117432,-400.0,0.00044109,120]
[378758426,1755003117441,-400.0,0.00044109,120]
[378758427,1755003117451,-1550.59,0.00044109,120]
[378758428,1755003117460,-400.0,0.00044109,120]
[378758429,1755003117469,-400.0,0.00044109,120]
[378758430,1755003117479,-2263.04,0.00044109,120]
[378758431,1755003117488,-801.81,0.00044109,120]
[378758432,1755003117497,-517.14,0.00044109,120]
[378758433,1755003117506,-400.0,0.00044109,120]
[378758434,1755003117515,-1000.0,0.00044109,2]
[378758435,1755003117524,-416.76,0.00044109,120]
[378758436,1755003117534,-606.34,0.00044109,7]
[378758437,1755003117543,-1058.21,0.00044109,120]
[378758438,1755003117552,-400.0,0.00044109,120]
[378758439,1755003117563,-463.53,0.00044109,120]
[378758440,1755003117573,-400.0,0.00044109,120]
[378758441,1755003117583,-400.0,0.00044109,120]
[378758442,1755003117594,-400.0,0.00044109,120]
[378758443,1755003117604,-400.0,0.00044109,120]
[378758444,1755003117613,-661.34,0.00044109,120]
[378758445,1755003117622,-453.89,0.00044109,120]
[378758446,1755003117635,-3468.76,0.00044109,120]
[378758447,1755003117646,-747.81,0.00044109,120]
[378758448,1755003117655,-413.27,0.00044109,120]
[378758449,1755003117665,-689.53,0.00044109,120]
[378758450,1755003117675,-567.5,0.00044109,120]
[378758451,1755003117684,-414.54,0.00044109,120]
[378758452,1755003117693,-400.0,0.00044109,120]
[378758453,1755003117703,-3359.66,0.00044109,120]
[378758454,1755003117713,-400.0,0.00044109,120]
[378758455,1755003117723,-400.0,0.00044109,120]
[378758456,1755003117733,-449.21,0.00044109,120]
[378758457,1755003117742,-704.22,0.00044109,120]
[378758458,1755003117751,-400.0,0.00044109,120]
[378758459,1755003117760,-400.0,0.00044109,120]
[378758460,1755003117770,-400.0,0.00044109,120]
[378758461,1755003117780,-632.29,0.00044109,120]
[378758462,1755003117789,-466.87,0.00044109,120]
[378758463,1755003117799,-494.37,0.00044109,120]
[378758464,1755003117809,-400.0,0.00044109,120]
[378758465,1755003117819,-400.0,0.00044109,120]
[378758466,1755003117829,-601.38,0.00044109,120]
[378758467,1755003117838,-279.76,0.00044109,120]
[378758468,1755003117848,-400.0,0.00044109,120]
[378758469,1755003117857,-710.1,0.00044109,120]
[378758470,1755003117866,-387.89914517,0.00044109,120]
[378758471,1755003117875,-400.0,0.00044109,120]
[378758472,1755003117885,-929.42,0.00044109,120]
[378758473,1755003117894,-400.0,0.00044109,120]
[378758474,1755003117904,-654.03,0.00044109,120]
[378758475,1755003117913,-400.0,0.00044109,120]
[378758476,1755003117922,-400.0,0.00044109,120]
[378758477,1755003117931,-683.7,0.00044109,120]
[378758478,1755003117941,-727.2,0.00044109,120]
[378758479,1755003117950,-1130.55,0.00044109,120]
[378758480,1755003117959,-400.0,0.00044109,120]
[378758481,1755003117968,-400.0,0.00044109,120]
[378758482,1755003117977,-400.0,0.00044109,120]
[378758483,1755003117986,-693.76,0.00044109,120]
[378758484,1755003117995,-400.0,0.00044109,120]
[378758485,1755003118005,-2521.4,0.00044109,120]
[378758486,1755003118014,-765.99,0.00044109,120]
[378758487,1755003118024,-408.27,0.00044109,120]
[378758488,1755003118033,-400.0,0.00044109,120]
[378758489,1755003118042,-674.11,0.00044109,120]
[378758490,1755003118051,-463.15,0.00044109,120]
[378758491,1755003118062,-515.85,0.00044109,120]
[378758492,1755003118072,-400.0,0.00044109,14]
[378758493,1755003118081,-400.0,0.00044109,120]
[378758494,1755003118090,-400.0,0.00044109,120]
[378758495,1755003118099,-726.38,0.00044109,120]
[378758496,1755003118109,-400.0,0.00044109,120]
[378758497,1755003118118,-400.0,0.00044109,120]
[378758498,1755003118127,-1713.36,0.00044109,120]
[378758499,1755003118136,-564.91,0.00044109,120]
[378758500,1755003118146,-622.29,0.00044109,120]
[378758501,1755003118155,-576.83,0.00044109,120]
[378758502,1755003118165,-461.85,0.00044109,120]
[378758503,1755003118175,-558.07,0.00044109,120]
[378758504,1755003118184,-400.0,0.00044109,120]
[378758505,1755003118194,-400.0,0.00044109,120]
[378758506,1755003118203,-400.0,0.00044109,120]
[378758507,1755003118213,-400.0,0.00044109,120]
[378758508,1755003118223,-400.0,0.00044109,120]
[378758509,1755003118232,-756.4,0.00044109,120]
[378758510,1755003118241,-400.0,0.00044109,120]
[378758511,1755003118251,-471.31,0.00044109,120]
[378758512,1755003118260,-462.1,0.00044109,120]
[378758513,1755003118269,-400.0,0.00044109,120]
[378758514,1755003118279,-400.0,0.00044109,120]
[378758515,1755003118288,-555.74,0.00044109,120]
[378758516,1755003118297,-740.93,0.00044109,120]
[378758517,1755003118307,-440.15,0.00044109,120]
[378758518,1755003118316,-400.0,0.00044109,120]
[378758519,1755003118326,-413.22,0.00044109,120]
[378758520,1755003118335,-400.0,0.00044109,120]
[378758521,1755003118344,-537.60529673,0.0004411,5]
[378758522,1755003118354,-778.98728017,0.00044131,15]
[378758523,1755003118364,-1457.0,0.00044181,30]
[378758524,1755003118373,-1308.0876591,0.00044261,2]
[378758525,1755003118383,-265.25104106,0.00044283,120]
[378758526,1755003118393,-152.0,0.00044335,3]
[378758527,1755003118544,-999.0,0.00044372,120]
[378758528,1755003118567,-597.51,0.00044382,120]
[378758529,1755003118578,-597.51,0.00044382,120]
[378758530,1755003118587,-597.51,0.00044382,120]
[378758531,1755003118597,-597.51,0.00044382,120]
[378758532,1755003118607,-597.73,0.00044382,120]
[378758533,1755003118616,-400.0,0.00044383,120]
[378758534,1755003118629,-400.0,0.00044383,120]
[378758535,1755003118639,-227.22052447,0.00044383,120]
[378758536,1755003118649,-400.0,0.00044383,120]
[378758537,1755003118658,-646.53,0.00044383,120]
[378758538,1755003118670,-400.0,0.00044383,120]
[378758539,1755003118679,-400.0,0.00044383,120]
[378758540,1755003118689,-400.0,0.00044383,120]
[378758541,1755003118699,-400.0,0.00044383,120]
[378758542,1755003118709,-400.0,0.00044383,120]
[378758543,1755003118719,-400.0,0.00044383,120]
[378758544,1755003118728,-400.0,0.00044383,120]
[378758545,1755003118738,-400.0,0.00044383,120]
[378758546,1755003118747,-552.24,0.00044383,120]
[378758547,1755003118756,-400.0,0.00044383,120]
[378758548,1755003118766,-400.0,0.00044383,120]
[378758549,1755003118775,-400.0,0.00044383,120]
[378758550,1755003118784,-411.75863924,0.00044383,120]
[378758551,1755003118794,-400.0,0.00044383,120]
[378758552,1755003118803,-687.38,0.00044383,120]
[378758553,1755003118815,-400.0,0.00044383,120]
[378758554,1755003118824,-400.0,0.00044383,120]
[378758555,1755003118834,-400.0,0.00044383,120]
[378758556,1755003118844,-648.2,0.00044383,120]
[378758557,1755003118853,-400.0,0.00044383,120]
[378758558,1755003118862,-400.0,0.00044383,120]
[378758559,1755003118872,-400.0,0.00044383,120]
[378758560,1755003118880,-400.0,0.00044383,120]
[378758561,1755003118890,-400.0,0.00044383,120]
[378758562,1755003118899,-400.0,0.00044383,120]
[378758563,1755003118909,-400.0,0.00044383,120]
[378758564,1755003118918,-424.7,0.00044383,120]
[378758565,1755003118927,-541.9,0.00044383,120]
[378758566,1755003118936,-268.653618,0.00044383,120]
[378758567,1755003118946,-565.63,0.00044383,120]
[378758568,1755003118956,-400.0,0.00044383,120]
[378758569,1755003118965,-592.88,0.00044383,120]
[378758570,1755003118974,-4791.08,0.00044383,120]
[378758571,1755003118983,-400.0,0.00044383,120]
[378758572,1755003118993,-475.4,0.00044383,120]
[378758573,1755003119002,-421.82,0.00044383,120]
[378758574,1755003119011,-400.0,0.00044383,120]
[378758575,1755003119021,-400.0,0.00044383,30]
[378758576,1755003119030,-157.703964,0.00044383,120]
[378758577,1755003119040,-275.36456,0.00044383,120]
[378758578,1755003119049,-432.57,0.00044383,120]
[378758579,1755003119058,-419.5,0.00044383,120]
[378758580,1755003119067,-400.0,0.00044383,120]
[378758581,1755003119076,-400.0,0.00044383,120]
[378758582,1755003119086,-400.0,0.00044383,120]
[378758583,1755003119095,-400.0,0.00044383,120]
[378758584,1755003119105,-400.0,0.00044383,120]
[378758585,1755003119114,-400.0,0.00044383,120]
[378758586,1755003119124,-369.30148145,0.00044383,120]
[378758587,1755003119133,-500.94,0.00044383,120]
[378758588,1755003119143,-400.0,0.00044383,120]
[378758589,1755003119153,-649.81,0.00044383,120]
[378758590,1755003119162,-400.0,0.00044383,120]
[378758591,1755003119171,-400.0,0.00044383,120]
[378758592,1755003119181,-400.0,0.00044383,120]
[378758593,1755003119190,-400.0,0.00044383,120]
[378758594,1755003119199,-513.05080929,0.00044383,120]
[378758595,1755003119208,-400.0,0.00044383,120]
[378758596,1755003119218,-656.69,0.00044383,120]
[378758597,1755003119227,-469.11,0.00044383,120]
[378758598,1755003119237,-426.91,0.00044383,120]
[378758599,1755003119246,-400.0,0.00044383,120]
[378758600,1755003119255,-400.0,0.00044383,120]
[378758601,1755003119265,-400.0,0.00044383,120]
[378758602,1755003119274,-400.0,0.00044383,120]
[378758603,1755003119284,-400.0,0.00044383,120]
[378758604,1755003119293,-400.0,0.00044383,120]
[378758605,1755003119303,-400.0,0.00044383,120]
[378758606,1755003119313,-407.69,0.00044383,120]
[378758607,1755003119323,-400.0,0.00044383,120]
[378758608,1755003119333,-643.28,0.00044383,120]
[378758609,1755003119342,-400.0,0.00044383,120]
[378758610,1755003119352,-537.97089984,0.00044383,120]
[378758611,1755003119361,-425.08,0.00044383,120]
[378758612,1755003119371,-400.0,0.00044383,120]
[378758613,1755003119381,-400.0,0.00044383,120]
[378758614,1755003119390,-400.0,0.00044383,120]
[378758615,1755003119400,-400.0,0.00044383,120]
[378758616,1755003119409,-485.48,0.00044383,120]
[378758617,1755003119419,-400.0,0.00044383,120]
[378758618,1755003119429,-400.0,0.00044383,120]
[378758619,1755003119439,-620.11,0.00044383,120]
[378758620,1755003119448,-422.97,0.00044383,120]
[378758621,1755003119458,-407.76,0.00044383,120]
[378758622,1755003119468,-400.0,0.00044383,120]
[378758623,1755003119477,-181.67205682,0.00044383,120]
[378758624,1755003119487,-400.0,0.00044383,120]
[378758625,1755003119497,-473.91,0.00044383,120]
[378758626,1755003119507,-400.0,0.00044383,120]
[378758627,1755003119516,-429.54,0.00044383,120]
[378758628,1755003119526,-400.0,0.00044383,120]
[378758629,1755003119535,-400.0,0.00044383,120]
[378758630,1755003119545,-2095.41,0.00044383,120]
[378758631,1755003119554,-400.0,0.00044383,120]
[378758632,1755003119564,-803.63,0.00044383,120]
[378758633,1755003119574,-403.57,0.00044383,120]
[378758634,1755003119583,-432.23,0.00044383,120]
[378758635,1755003119592,-400.0,0.00044383,120]
[378758636,1755003119602,-400.0,0.00044383,120]
[378758637,1755003119611,-400.0,0.00044383,120]
[378758638,1755003119621,-400.0,0.00044383,120]
[378758639,1755003119634,-403.73,0.00044383,120]
[378758640,1755003119645,-506.69,0.00044383,120]
[378758641,1755003119655,-400.0,0.00044383,120]
[378758642,1755003119666,-400.0,0.00044383,120]
[378758643,1755003119676,-400.0,0.00044383,120]
[378758644,1755003119686,-400.0,0.00044383,120]
[378758645,1755003119695,-1369.1,0.00044383,120]
[378758646,1755003119705,-460.46,0.00044383,120]
[378758647,1755003119715,-1677.37,0.00044383,120]
[378758648,1755003119725,-400.0,0.00044383,120]
[378758649,1755003119734,-638.32,0.00044383,120]
[378758650,1755003119743,-214.02795262,0.00044383,120]
[378758651,1755003119753,-400.0,0.00044383,120]
[378758652,1755003119763,-557.52,0.00044383,120]
[378758653,1755003119772,-720.04,0.00044383,120]
[378758654,1755003119782,-400.0,0.00044383,120]
[378758655,1755003119792,-1407.52,0.00044383,120]
[378758656,1755003119801,-400.0,0.00044383,120]
[378758657,1755003119811,-671.93,0.00044383,120]
[378758658,1755003119820,-530.69942403,0.00044383,120]
[378758659,1755003119830,-535.29,0.00044383,120]
[378758660,1755003119840,-400.0,0.00044383,120]
[378758661,1755003119849,-537.89,0.00044383,120]
[378758662,1755003119859,-519.49,0.00044383,120]
[378758663,1755003119869,-641.09,0.00044383,120]
[378758664,1755003119878,-697.03,0.00044383,120]
[378758665,1755003119887,-740.0,0.00044383,120]
[378758666,1755003119897,-400.0,0.00044383,120]
[378758667,1755003119906,-494.78,0.00044383,120]
[378758668,1755003119916,-400.0,0.00044383,120]
[378758669,1755003119925,-400.0,0.00044383,120]
[378758670,1755003119935,-400.0,0.00044383,120]
[378758671,1755003119944,-695.15,0.00044383,120]
[378758672,1755003119953,-595.64,0.00044383,120]
[378758673,1755003119963,-705.13,0.00044383,120]
[378758674,1755003119972,-715.11,0.00044383,120]
[378758675,1755003119982,-469.65,0.00044383,120]
[378758676,1755003119992,-400.0,0.00044383,120]
[378758677,1755003120002,-400.0,0.00044383,120]
[378758678,1755003120011,-832.68,0.00044383,120]
[378758679,1755003120021,-549.29,0.00044383,120]
[378758680,1755003120031,-626.92,0.00044383,120]
[378758681,1755003120040,-400.0,0.00044383,60]
[378758682,1755003120050,-400.0,0.00044383,120]
[378758683,1755003120061,-435.17,0.00044383,120]
[378758684,1755003120071,-400.0,0.00044383,120]
[378758685,1755003120081,-400.0,0.00044383,120]
[378758686,1755003120091,-400.0,0.00044383,120]
[378758687,1755003120101,-747.94,0.00044383,120]
[378758688,1755003120111,-400.0,0.00044383,120]
[378758689,1755003120120,-400.0,0.00044383,120]
[378758690,1755003120129,-400.0,0.00044383,120]
[378758691,1755003120139,-508.17,0.00044383,120]
[378758692,1755003120148,-400.0,0.00044383,120]
[378758693,1755003120158,-400.0,0.00044383,120]
[378758694,1755003120167,-493.89,0.00044383,120]
[378758695,1755003120176,-569.03,0.00044383,120]
[378758696,1755003120186,-400.0,0.00044383,120]
[378758697,1755003120195,-400.0,0.00044383,120]
[378758698,1755003120204,-1304.68,0.00044383,120]
[378758699,1755003120214,-472.71,0.00044383,120]
[378758700,1755003120223,-400.0,0.00044383,120]
[378758701,1755003120233,-485.21,0.00044383,120]
[378758702,1755003120243,-1427.73,0.00044383,120]
[378758703,1755003120252,-400.0,0.00044383,120]
[378758704,1755003120262,-400.0,0.00044383,120]
[378758705,1755003120272,-400.0,0.00044383,120]
[378758706,1755003120281,-400.0,0.00044383,120]
[378758707,1755003120291,-400.0,0.00044383,120]
[378758708,1755003120302,-668.75,0.00044383,120]
[378758709,1755003120313,-453.01346677,0.00044383,120]
[378758710,1755003120323,-400.0,0.00044383,120]
[378758711,1755003120332,-1550.59,0.00044383,120]
[378758712,1755003120342,-400.0,0.00044383,120]
[378758713,1755003120351,-400.0,0.00044383,120]
[378758714,1755003120361,-2263.04,0.00044383,120]
[378758715,1755003120370,-517.14,0.00044383,120]
[378758716,1755003120379,-400.0,0.00044383,120]
[378758717,1755003120389,-1000.0,0.00044383,2]
[378758718,1755003120398,-416.76,0.00044383,120]
[378758719,1755003120407,-606.34,0.00044383,7]
[378758720,1755003120417,-801.81,0.00044383,120]
[378758721,1755003120427,-1058.21,0.00044383,120]
[378758722,1755003120437,-400.0,0.00044383,120]
[378758723,1755003120446,-463.53,0.00044383,120]
[378758724,1755003120455,-400.0,0.00044383,120]
[378758725,1755003120465,-400.0,0.00044383,120]
[378758726,1755003120474,-400.0,0.00044383,120]
[378758727,1755003120483,-661.34,0.00044383,120]
[378758728,1755003120492,-400.0,0.00044383,120]
[378758729,1755003120502,-453.89,0.00044383,120]
[378758730,1755003120512,-3468.76,0.00044383,120]
[378758731,1755003120521,-747.81,0.00044383,120]
[378758732,1755003120531,-413.27,0.00044383,120]
[378758733,1755003120540,-689.53,0.00044383,120]
[378758734,1755003120550,-567.5,0.00044383,120]
[378758735,1755003120562,-414.54,0.00044383,120]
[378758736,1755003120571,-400.0,0.00044383,120]
[378758737,1755003120580,-3359.66,0.00044383,120]
[378758738,1755003120590,-400.0,0.00044383,120]
[378758739,1755003120600,-242.79478344,0.00044383,120]
[378758740,1755003120610,-449.21,0.00044383,120]
[378758741,1755003120620,-704.22,0.00044383,120]
[378758742,1755003120634,-403.96676831,0.00044383,120]
[378758743,1755003120643,-400.0,0.00044383,120]
[378758744,1755003120654,-400.0,0.00044383,120]
[378758745,1755003120664,-632.29,0.00044383,120]
[378758746,1755003120675,-466.87,0.00044383,120]
[378758747,1755003120684,-494.37,0.00044383,120]
[378758748,1755003120694,-400.0,0.00044383,120]
[378758749,1755003120704,-400.0,0.00044383,120]
[378758750,1755003120714,-601.38,0.00044383,120]
[378758751,1755003120724,-400.0,0.00044383,120]
[378758752,1755003120734,-710.1,0.00044383,120]
[378758753,1755003120744,-400.0,0.00044383,120]
[378758754,1755003120754,-929.42,0.00044383,120]
[378758755,1755003120764,-546.88082503,0.00044383,120]
[378758756,1755003120773,-654.03,0.00044383,120]
[378758757,1755003120783,-400.0,0.00044383,120]
[378758758,1755003120793,-400.0,0.00044383,120]
[378758759,1755003120803,-683.7,0.00044383,120]
[378758760,1755003120818,-727.2,0.00044383,120]
[378758761,1755003120828,-1130.55,0.00044383,120]
[378758762,1755003120838,-400.0,0.00044383,120]
[378758763,1755003120849,-400.0,0.00044383,120]
[378758764,1755003120858,-400.0,0.00044383,120]
[378758765,1755003120868,-693.76,0.00044383,120]
[378758766,1755003120877,-400.0,0.00044383,120]
[378758767,1755003120887,-2521.4,0.00044383,120]
[378758768,1755003120897,-765.99,0.00044383,120]
[378758769,1755003120906,-408.27,0.00044383,120]
[378758770,1755003120916,-400.0,0.00044383,120]
[378758771,1755003120925,-674.11,0.00044383,120]
[378758772,1755003120935,-463.15,0.00044383,120]
[378758773,1755003120944,-515.85,0.00044383,120]
[378758774,1755003120953,-400.0,0.00044383,14]
[378758775,1755003120963,-400.0,0.00044383,120]
[378758776,1755003120973,-400.0,0.00044383,120]
[378758777,1755003120983,-726.38,0.00044383,120]
[378758778,1755003120992,-400.0,0.00044383,120]
[378758779,1755003121002,-400.0,0.00044383,120]
[378758780,1755003121011,-1713.36,0.00044383,120]
[378758781,1755003121021,-564.91,0.00044383,120]
[378758782,1755003121031,-576.83,0.00044383,120]
[378758783,1755003121040,-461.85,0.00044383,120]
[378758784,1755003121050,-622.29,0.00044383,120]
[378758785,1755003121062,-558.07,0.00044383,120]
[378758786,1755003121072,-400.0,0.00044383,120]
[378758787,1755003121081,-400.0,0.00044383,120]
[378758788,1755003121091,-400.0,0.00044383,120]
[378758789,1755003121101,-361.51517093,0.00044383,120]
[378758790,1755003121111,-400.0,0.00044383,120]
[378758791,1755003121120,-756.4,0.00044383,120]
[378758792,1755003121129,-400.0,0.00044383,120]
[378758793,1755003121139,-471.31,0.00044383,120]
[378758794,1755003121149,-462.1,0.00044383,120]
[378758795,1755003121158,-400.0,0.00044383,120]
[378758796,1755003121167,-400.0,0.00044383,120]
[378758797,1755003121177,-555.74,0.00044383,120]
[378758798,1755003121187,-740.93,0.00044383,120]
[378758799,1755003121196,-440.15,0.00044383,120]
[378758800,1755003121205,-400.0,0.00044383,120]
[378758801,1755003121215,-413.22,0.00044383,120]
[378758802,1755003121224,-400.0,0.00044383,120]
[378758803,1755003121233,-1000.0,0.00044418,2]
[378758804,1755003121243,-151.0,0.000445,120]
[378758805,1755003121253,-778.98728017,0.00044557,15]
[378758806,1755003121263,-1146.55741472,0.00044595,2]
[378758807,1755003121272,-166.626604,0.00044597,28]
[378758808,1755003121282,-1457.0,0.00044619,30]
[378758809,1755003121292,-500.0,0.00044656,120]
[378758810,1755003121302,-400.0,0.00044657,120]
[378758811,1755003121314,-400.0,0.00044657,120]
[378758812,1755003121323,-400.0,0.00044657,120]
[378758813,1755003121332,-646.53,0.00044657,120]
[378758814,1755003121342,-400.0,0.00044657,120]
[378758815,1755003121351,-400.0,0.00044657,120]
[378758816,1755003121361,-400.0,0.00044657,120]
[378758817,1755003121371,-400.0,0.00044657,120]
[378758818,1755003121380,-400.0,0.00044657,120]
[378758819,1755003121391,-429.26917106,0.00044657,120]
[378758820,1755003121400,-400.0,0.00044657,120]
[378758821,1755003121409,-522.21,0.00044657,120]
[378758822,1755003121419,-552.24,0.00044657,120]
[378758823,1755003121428,-400.0,0.00044657,120]
[378758824,1755003121437,-400.0,0.00044657,120]
[378758825,1755003121447,-476.7417161,0.00044657,120]
[378758826,1755003121456,-400.0,0.00044657,120]
[378758827,1755003121466,-687.38,0.00044657,120]
[378758828,1755003121475,-400.0,0.00044657,120]
[378758829,1755003121484,-343.1336033,0.00044657,120]
[378758830,1755003121633,-400.0,0.00044657,120]
[378758831,1755003121643,-648.2,0.00044657,120]
[378758832,1755003121653,-400.0,0.00044657,120]
[378758833,1755003121663,-400.0,0.00044657,120]
[378758834,1755003121673,-400.0,0.00044657,120]
[378758835,1755003121683,-400.0,0.00044657,120]
[378758836,1755003121694,-400.0,0.00044657,120]
[378758837,1755003121703,-236.9928468,0.00044657,120]
[378758838,1755003121730,-163.0071532,0.00044657,120]
[378758839,1755003121740,-400.0,0.00044657,120]
[378758840,1755003121750,-424.7,0.00044657,120]
[378758841,1755003121759,-541.9,0.00044657,120]
[378758842,1755003121769,-268.653618,0.00044657,120]
[378758843,1755003121779,-565.63,0.00044657,120]
[378758844,1755003121790,-400.0,0.00044657,120]
[378758845,1755003121800,-592.88,0.00044657,120]
[378758846,1755003121810,-4791.08,0.00044657,120]
[378758847,1755003121821,-400.0,0.00044657,120]
[378758848,1755003121831,-475.4,0.00044657,120]
[378758849,1755003121841,-421.82,0.00044657,120]
[378758850,1755003121851,-382.3634376,0.00044657,120]
[378758851,1755003121861,-400.0,0.00044657,30]
[378758852,1755003121871,-275.36456,0.00044657,120]
[378758853,1755003121881,-432.57,0.00044657,120]
[378758854,1755003121891,-419.5,0.00044657,120]
[378758855,1755003121900,-400.0,0.00044657,120]
[378758856,1755003121910,-400.0,0.00044657,120]
[378758857,1755003121919,-400.0,0.00044657,120]
[378758858,1755003121928,-290.65094478,0.00044657,120]
[378758859,1755003121938,-400.0,0.00044657,120]
[378758860,1755003121948,-400.0,0.00044657,120]
[378758861,1755003121958,-500.94,0.00044657,120]
[378758862,1755003121967,-400.0,0.00044657,120]
[378758863,1755003121978,-649.81,0.00044657,120]
[378758864,1755003121988,-400.0,0.00044657,120]
[378758865,1755003121997,-400.0,0.00044657,120]
[378758866,1755003122007,-344.46651259,0.00044657,120]
[378758867,1755003122017,-400.0,0.00044657,120]
[378758868,1755003122027,-400.0,0.00044657,120]
[378758869,1755003122037,-656.69,0.00044657,120]
[378758870,1755003122047,-469.11,0.00044657,120]
[378758871,1755003122063,-426.91,0.00044657,120]
[378758872,1755003122072,-400.0,0.00044657,120]
[378758873,1755003122084,-400.0,0.00044657,120]
[378758874,1755003122094,-448.88435204,0.00044657,120]
[378758875,1755003122104,-400.0,0.00044657,120]
[378758876,1755003122114,-257.16768168,0.00044657,120]
[378758877,1755003122123,-400.0,0.00044657,120]
[378758878,1755003122133,-400.0,0.00044657,120]
[378758879,1755003122143,-407.69,0.00044657,120]
[378758880,1755003122152,-400.0,0.00044657,120]
[378758881,1755003122162,-643.28,0.00044657,120]